Workbook

Sheet Miesięczne podsumowanie budżetu
B1: NAZWA FIRMY
B2: BUDŻET MIESIĘCZNY | E2: Data
B4: SUMY BUDŻETU | C4: SZACOWANE | D4: RZECZYWISTE | E4: RÓŻNICA
B5: Przychód | C5: =Przychód[[#Totals],[SZACOWANE]] -> 63300.00 | D5: =Przychód[[#Totals],[RZECZYWISTE]] -> 57450.00 | E5: =Sumy[[#This Row],[RZECZYWISTE]]-Sumy[[#This Row],[SZACOWANE]] -> -5850.00
B6: Wydatki | C6: =Wydatki_operacyjne[[#Totals],[SZACOWANE]]+Wydatki_na_personel[[#Totals],[SZACOWANE]] -> 54500.00 | D6: =Wydatki_operacyjne[[#Totals],[RZECZYWISTE]]+Wydatki_na_personel[[#Totals],[RZECZYWISTE]] -> 49630.00 | E6: =Sumy[[#This Row],[RZECZYWISTE]]-Sumy[[#This Row],[SZACOWANE]] -> -4870.00
B7: Saldo (przychód minus wydatki) | C7: =C5-C6 -> 8800.00 | D7: =D5-D6 -> 7820.00 | E7: =Sumy[[#Totals],[RZECZYWISTE]]-Sumy[[#Totals],[SZACOWANE]] -> -980.00
B9: Ta komórka zawiera wykres Przegląd budżetu. W tabeli 5_najwyższych_wydatków poniżej 5 najwyższych wydatków operacyjnych jest aktualizowanych automatycznie.
B10: CO STANOWI 5 NAJWYŻSZYCH WYDATKÓW OPERACYJNYCH?
B11: WYDATEK | C11: KWOTA | D11: % WYDATKÓW | E11: ZMNIEJSZENIE O 15%
B12: =INDEX(Wydatki_operacyjne[],MATCH(_5_najwyższych_wydatków[[#This Row],[KWOTA]],Wydatki_operacyjne[5 NAJWYŻSZYCH KWOT],0),1) -> Konserwacja i naprawy | C12: =LARGE(Wydatki_operacyjne[5 NAJWYŻSZYCH KWOT],1) -> 4,600.00 | D12: =_5_najwyższych_wydatków[[#This Row],[KWOTA]]/$D$6 -> 9.3% | E12: =_5_najwyższych_wydatków[[#This Row],[KWOTA]]*0.15 -> 690.00
B13: =INDEX(Wydatki_operacyjne[],MATCH(_5_najwyższych_wydatków[[#This Row],[KWOTA]],Wydatki_operacyjne[5 NAJWYŻSZYCH KWOT],0),1) -> Materiały | C13: =LARGE(Wydatki_operacyjne[5 NAJWYŻSZYCH KWOT],2) -> 4,500.00 | D13: =_5_najwyższych_wydatków[[#This Row],[KWOTA]]/$D$6 -> 9.1% | E13: =_5_najwyższych_wydatków[[#This Row],[KWOTA]]*0.15 -> 675.00
B14: =INDEX(Wydatki_operacyjne[],MATCH(_5_najwyższych_wydatków[[#This Row],[KWOTA]],Wydatki_operacyjne[5 NAJWYŻSZYCH KWOT],0),1) -> Hipoteka lub czynsz | C14: =LARGE(Wydatki_operacyjne[5 NAJWYŻSZYCH KWOT],3) -> 4,500.00 | D14: =_5_najwyższych_wydatków[[#This Row],[KWOTA]]/$D$6 -> 9.1% | E14: =_5_najwyższych_wydatków[[#This Row],[KWOTA]]*0.15 -> 675.00
B15: =INDEX(Wydatki_operacyjne[],MATCH(_5_najwyższych_wydatków[[#This Row],[KWOTA]],Wydatki_operacyjne[5 NAJWYŻSZYCH KWOT],0),1) -> Podatki | C15: =LARGE(Wydatki_operacyjne[5 NAJWYŻSZYCH KWOT],4) -> 3,200.00 | D15: =_5_najwyższych_wydatków[[#This Row],[KWOTA]]/$D$6 -> 6.4% | E15: =_5_najwyższych_wydatków[[#This Row],[KWOTA]]*0.15 -> 480.00
B16: =INDEX(Wydatki_operacyjne[],MATCH(_5_najwyższych_wydatków[[#This Row],[KWOTA]],Wydatki_operacyjne[5 NAJWYŻSZYCH KWOT],0),1) -> Reklama | C16: =LARGE(Wydatki_operacyjne[5 NAJWYŻSZYCH KWOT],5) -> 2,500.00 | D16: =_5_najwyższych_wydatków[[#This Row],[KWOTA]]/$D$6 -> 5.0% | E16: =_5_najwyższych_wydatków[[#This Row],[KWOTA]]*0.15 -> 375.00
B17: Suma | C17: =SUBTOTAL(109,_5_najwyższych_wydatków[KWOTA]) -> 19,300.00 | D17: =SUBTOTAL(109,_5_najwyższych_wydatków[% WYDATKÓW]) -> 38.9% | E17: =SUBTOTAL(109,_5_najwyższych_wydatków[ZMNIEJSZENIE O 15%]) -> 2,895.00

Sheet Przychód
B1: =NAZWA_FIRMY -> NAZWA FIRMY
B2: =BUDŻET_Tytuł -> BUDŻET MIESIĘCZNY
B4: PRZYCHÓD | C4: SZACOWANE | D4: RZECZYWISTE | E4: 5 NAJWYŻSZYCH KWOT | F4: RÓŻNICA
B5: Sprzedaż netto | C5: 60,000.00 | D5: 54,000.00 | E5: =Przychód[[#This Row],[RZECZYWISTE]]+(10^-6)*ROW(Przychód[[#This Row],[RZECZYWISTE]]) -> 54,000.00 | F5: =Przychód[[#This Row],[RZECZYWISTE]]-Przychód[[#This Row],[SZACOWANE]] -> -6,000.00
B6: Przychód z tytułu odsetek | C6: 3,000.00 | D6: 3,000.00 | E6: =Przychód[[#This Row],[RZECZYWISTE]]+(10^-6)*ROW(Przychód[[#This Row],[RZECZYWISTE]]) -> 3,000.00 | F6: =Przychód[[#This Row],[RZECZYWISTE]]-Przychód[[#This Row],[SZACOWANE]] -> 0.00
B7: Sprzedaż składników majątku (zysk/strata) | C7: 300.00 | D7: 450.00 | E7: =Przychód[[#This Row],[RZECZYWISTE]]+(10^-6)*ROW(Przychód[[#This Row],[RZECZYWISTE]]) -> 450.00 | F7: =Przychód[[#This Row],[RZECZYWISTE]]-Przychód[[#This Row],[SZACOWANE]] -> 150.00
B8: Łączny przychód | C8: =SUBTOTAL(109,Przychód[SZACOWANE]) -> 63,300.00 | D8: =SUBTOTAL(109,Przychód[RZECZYWISTE]) -> 57,450.00 | F8: =SUBTOTAL(109,Przychód[RÓŻNICA]) -> -5,850.00

Sheet Wydatki na personel
B1: =NAZWA_FIRMY -> NAZWA FIRMY
B2: =BUDŻET_Tytuł -> BUDŻET MIESIĘCZNY
B4: WYDATKI NA PERSONEL | C4: SZACOWANE | D4: RZECZYWISTE | E4: 5 NAJWYŻSZYCH KWOT | F4: RÓŻNICA
B5: Pensje | C5: 9,500.00 | D5: 9,600.00 | E5: =Wydatki_na_personel[[#This Row],[RZECZYWISTE]]+(10^-6)*ROW(Wydatki_na_personel[[#This Row],[RZECZYWISTE]]) -> 9,600.00 | F5: =Wydatki_na_personel[[#This Row],[SZACOWANE]]-Wydatki_na_personel[[#This Row],[RZECZYWISTE]] -> -100.00
B6: Świadczenia dla pracowników | C6: 4,000.00 | D6: 0.00 | E6: =Wydatki_na_personel[[#This Row],[RZECZYWISTE]]+(10^-6)*ROW(Wydatki_na_personel[[#This Row],[RZECZYWISTE]]) -> 0.00 | F6: =Wydatki_na_personel[[#This Row],[SZACOWANE]]-Wydatki_na_personel[[#This Row],[RZECZYWISTE]] -> 4,000.00
B7: Prowizja | C7: 5,000.00 | D7: 4,500.00 | E7: =Wydatki_na_personel[[#This Row],[RZECZYWISTE]]+(10^-6)*ROW(Wydatki_na_personel[[#This Row],[RZECZYWISTE]]) -> 4,500.00 | F7: =Wydatki_na_personel[[#This Row],[SZACOWANE]]-Wydatki_na_personel[[#This Row],[RZECZYWISTE]] -> 500.00
B8: Suma wydatków na personel | C8: =SUBTOTAL(109,Wydatki_na_personel[SZACOWANE]) -> 18,500.00 | D8: =SUBTOTAL(109,Wydatki_na_personel[RZECZYWISTE]) -> 14,100.00 | F8: =SUBTOTAL(109,Wydatki_na_personel[RÓŻNICA]) -> 4,400.00

Sheet Wydatki operacyjne
B1: =NAZWA_FIRMY -> NAZWA FIRMY
B2: =BUDŻET_Tytuł -> BUDŻET MIESIĘCZNY
B4: KOSZTY OPERACYJNE | C4: SZACOWANE | D4: RZECZYWISTE | E4: 5 NAJWYŻSZYCH KWOT | F4: RÓŻNICA
B5: Amortyzacja | C5: 1,000.00 | D5: 1,000.00 | E5: =Wydatki_operacyjne[[#This Row],[RZECZYWISTE]]+(10^-6)*ROW(Wydatki_operacyjne[[#This Row],[RZECZYWISTE]]) -> 1,000.00 | F5: =Wydatki_operacyjne[[#This Row],[SZACOWANE]]-Wydatki_operacyjne[[#This Row],[RZECZYWISTE]] -> 0.00
B6: Hipoteka lub czynsz | C6: 4,100.00 | D6: 4,500.00 | E6: =Wydatki_operacyjne[[#This Row],[RZECZYWISTE]]+(10^-6)*ROW(Wydatki_operacyjne[[#This Row],[RZECZYWISTE]]) -> 4,500.00 | F6: =Wydatki_operacyjne[[#This Row],[SZACOWANE]]-Wydatki_operacyjne[[#This Row],[RZECZYWISTE]] -> -400.00
B7: Inne | C7: 1,000.00 | D7: 750.00 | E7: =Wydatki_operacyjne[[#This Row],[RZECZYWISTE]]+(10^-6)*ROW(Wydatki_operacyjne[[#This Row],[RZECZYWISTE]]) -> 750.00 | F7: =Wydatki_operacyjne[[#This Row],[SZACOWANE]]-Wydatki_operacyjne[[#This Row],[RZECZYWISTE]] -> 250.00
B8: Konserwacja i naprawy | C8: 4,500.00 | D8: 4,600.00 | E8: =Wydatki_operacyjne[[#This Row],[RZECZYWISTE]]+(10^-6)*ROW(Wydatki_operacyjne[[#This Row],[RZECZYWISTE]]) -> 4,600.00 | F8: =Wydatki_operacyjne[[#This Row],[SZACOWANE]]-Wydatki_operacyjne[[#This Row],[RZECZYWISTE]] -> -100.00
B9: Koszty dostawy | C9: 2,000.00 | D9: 1,500.00 | E9: =Wydatki_operacyjne[[#This Row],[RZECZYWISTE]]+(10^-6)*ROW(Wydatki_operacyjne[[#This Row],[RZECZYWISTE]]) -> 1,500.00 | F9: =Wydatki_operacyjne[[#This Row],[SZACOWANE]]-Wydatki_operacyjne[[#This Row],[RZECZYWISTE]] -> 500.00
B10: Materiały | C10: 5,000.00 | D10: 4,500.00 | E10: =Wydatki_operacyjne[[#This Row],[RZECZYWISTE]]+(10^-6)*ROW(Wydatki_operacyjne[[#This Row],[RZECZYWISTE]]) -> 4,500.00 | F10: =Wydatki_operacyjne[[#This Row],[SZACOWANE]]-Wydatki_operacyjne[[#This Row],[RZECZYWISTE]] -> 500.00
B11: Materiały biurowe | C11: 800.00 | D11: 750.00 | E11: =Wydatki_operacyjne[[#This Row],[RZECZYWISTE]]+(10^-6)*ROW(Wydatki_operacyjne[[#This Row],[RZECZYWISTE]]) -> 750.00 | F11: =Wydatki_operacyjne[[#This Row],[SZACOWANE]]-Wydatki_operacyjne[[#This Row],[RZECZYWISTE]] -> 50.00
B12: Odsetki | C12: 2,000.00 | D12: 2,200.00 | E12: =Wydatki_operacyjne[[#This Row],[RZECZYWISTE]]+(10^-6)*ROW(Wydatki_operacyjne[[#This Row],[RZECZYWISTE]]) -> 2,200.00 | F12: =Wydatki_operacyjne[[#This Row],[SZACOWANE]]-Wydatki_operacyjne[[#This Row],[RZECZYWISTE]] -> -200.00
B13: Opłaty i subskrypcje | C13: 500.00 | D13: 525.00 | E13: =Wydatki_operacyjne[[#This Row],[RZECZYWISTE]]+(10^-6)*ROW(Wydatki_operacyjne[[#This Row],[RZECZYWISTE]]) -> 525.00 | F13: =Wydatki_operacyjne[[#This Row],[SZACOWANE]]-Wydatki_operacyjne[[#This Row],[RZECZYWISTE]] -> -25.00
B14: Opłaty pocztowe | C14: 400.00 | D14: 350.00 | E14: =Wydatki_operacyjne[[#This Row],[RZECZYWISTE]]+(10^-6)*ROW(Wydatki_operacyjne[[#This Row],[RZECZYWISTE]]) -> 350.00 | F14: =Wydatki_operacyjne[[#This Row],[SZACOWANE]]-Wydatki_operacyjne[[#This Row],[RZECZYWISTE]] -> 50.00
B15: Podatki | C15: 3,000.00 | D15: 3,200.00 | E15: =Wydatki_operacyjne[[#This Row],[RZECZYWISTE]]+(10^-6)*ROW(Wydatki_operacyjne[[#This Row],[RZECZYWISTE]]) -> 3,200.00 | F15: =Wydatki_operacyjne[[#This Row],[SZACOWANE]]-Wydatki_operacyjne[[#This Row],[RZECZYWISTE]] -> -200.00
B16: Rabaty gotówkowe | C16: 1,500.00 | D16: 2,175.00 | E16: =Wydatki_operacyjne[[#This Row],[RZECZYWISTE]]+(10^-6)*ROW(Wydatki_operacyjne[[#This Row],[RZECZYWISTE]]) -> 2,175.00 | F16: =Wydatki_operacyjne[[#This Row],[SZACOWANE]]-Wydatki_operacyjne[[#This Row],[RZECZYWISTE]] -> -675.00
B17: Reklama | C17: 3,000.00 | D17: 2,500.00 | E17: =Wydatki_operacyjne[[#This Row],[RZECZYWISTE]]+(10^-6)*ROW(Wydatki_operacyjne[[#This Row],[RZECZYWISTE]]) -> 2,500.00 | F17: =Wydatki_operacyjne[[#This Row],[SZACOWANE]]-Wydatki_operacyjne[[#This Row],[RZECZYWISTE]] -> 500.00
B18: Telefon | C18: 250.00 | D18: 280.00 | E18: =Wydatki_operacyjne[[#This Row],[RZECZYWISTE]]+(10^-6)*ROW(Wydatki_operacyjne[[#This Row],[RZECZYWISTE]]) -> 280.00 | F18: =Wydatki_operacyjne[[#This Row],[SZACOWANE]]-Wydatki_operacyjne[[#This Row],[RZECZYWISTE]] -> -30.00
B19: Ubezpieczenie | C19: 1,300.00 | D19: 1,275.00 | E19: =Wydatki_operacyjne[[#This Row],[RZECZYWISTE]]+(10^-6)*ROW(Wydatki_operacyjne[[#This Row],[RZECZYWISTE]]) -> 1,275.00 | F19: =Wydatki_operacyjne[[#This Row],[SZACOWANE]]-Wydatki_operacyjne[[#This Row],[RZECZYWISTE]] -> 25.00
B20: Usługi komunalne | C20: 1,400.00 | D20: 1,385.00 | E20: =Wydatki_operacyjne[[#This Row],[RZECZYWISTE]]+(10^-6)*ROW(Wydatki_operacyjne[[#This Row],[RZECZYWISTE]]) -> 1,385.00 | F20: =Wydatki_operacyjne[[#This Row],[SZACOWANE]]-Wydatki_operacyjne[[#This Row],[RZECZYWISTE]] -> 15.00
B21: Usługi prawnicze i audytorskie | C21: 1,000.00 | D21: 800.00 | E21: =Wydatki_operacyjne[[#This Row],[RZECZYWISTE]]+(10^-6)*ROW(Wydatki_operacyjne[[#This Row],[RZECZYWISTE]]) -> 800.00 | F21: =Wydatki_operacyjne[[#This Row],[SZACOWANE]]-Wydatki_operacyjne[[#This Row],[RZECZYWISTE]] -> 200.00
B22: Wydatki sprzedażowe | C22: 350.00 | D22: 400.00 | E22: =Wydatki_operacyjne[[#This Row],[RZECZYWISTE]]+(10^-6)*ROW(Wydatki_operacyjne[[#This Row],[RZECZYWISTE]]) -> 400.00 | F22: =Wydatki_operacyjne[[#This Row],[SZACOWANE]]-Wydatki_operacyjne[[#This Row],[RZECZYWISTE]] -> -50.00
B23: Wysyłka i magazynowanie | C23: 900.00 | D23: 840.00 | E23: =Wydatki_operacyjne[[#This Row],[RZECZYWISTE]]+(10^-6)*ROW(Wydatki_operacyjne[[#This Row],[RZECZYWISTE]]) -> 840.00 | F23: =Wydatki_operacyjne[[#This Row],[SZACOWANE]]-Wydatki_operacyjne[[#This Row],[RZECZYWISTE]] -> 60.00
B24: Złe długi | C24: 2,000.00 | D24: 2,000.00 | E24: =Wydatki_operacyjne[[#This Row],[RZECZYWISTE]]+(10^-6)*ROW(Wydatki_operacyjne[[#This Row],[RZECZYWISTE]]) -> 2,000.00 | F24: =Wydatki_operacyjne[[#This Row],[SZACOWANE]]-Wydatki_operacyjne[[#This Row],[RZECZYWISTE]] -> 0.00
B25: Suma wydatków operacyjnych | C25: =SUBTOTAL(109,Wydatki_operacyjne[SZACOWANE]) -> 36,000.00 | D25: =SUBTOTAL(109,Wydatki_operacyjne[RZECZYWISTE]) -> 35,530.00 | F25: =SUBTOTAL(109,Wydatki_operacyjne[RÓŻNICA]) -> 470.00
